[Event "Marienbad B1-IM 2024"]
[Site "Marianske Lazne"]
[Date "2024.01.16"]
[Round "5.12"]
[White "Ni, Viktorija"]
[Black "Rasmussen, Casper"]
[Result "0-1"]
[ECO "D00"]
[WhiteElo "2138"]
[BlackElo "2265"]
[Annotator "RC"]
[PlyCount "156"]
[EventDate "2024.01.10"]
[EventType "tourn"]
[EventCountry "CZE"]
[SourceTitle "playchess.com"]
[Source "ChessBase"]
[SourceQuality "1"]
[TimeControl "40/5400+30:1800+30"]

1. d4 {[%emt 0:06:46]} d5 {[%emt 0:00:09]} 2. Bf4 {[%emt 0:00:53]} Nf6 {[%emt 0:00:52]} 3. e3 {[%emt 0:01:14]} e6 {[%emt 0:05:50]} 4. Nf3 {[%emt 0:01:55]} c5 {[%emt 0:00:25]} 5. c3 {[%emt 0:00:35]} Nc6 {[%emt 0:00:08]} 6. Nbd2 {[%emt 0:00:44]} Nh5 {[%emt 0:06:40]} 7. Bg5 {[%emt 0:01:55]} Be7 {[%emt 0:00:51]} 8. Bxe7 {[%emt 0:03:33]} Qxe7 {[%emt 0:00:03]} 9. Ne5 {[%emt 0:01:11]} Nxe5 {[%emt 0:05:13]} 10. Qxh5 {[%emt 0:12:40]} Nc6 {[%emt 0:02:20]} 11. Bb5 {[%emt 0:01:14]} Bd7 {[%emt 0:02:48]} 12. O-O {[%emt 0:04:57]} g6 {[%emt 0:11:29]} 13. Qh6 {[%emt 0:03:20]} O-O-O {[%emt 0:00:14]} 14. Nb3 {[%emt 0:06:49]} c4 {[%emt 0:08:54]} 15. Bxc6 {[%emt 0:05:34]} Bxc6 {[%emt 0:01:17]} 16. Nd2 {[%emt 0:04:02]} f6 {[%emt 0:01:00]} 17. f4 {[%emt 0:06:51]} Rhg8 {[%emt 0:01:41]} 18. Nf3 {[%emt 0:01:57]} Rdf8 {[%emt 0:01:53]} 19. g4 {[%emt 0:07:36]} g5 {[%emt 0:08:16]} 20. fxg5 {[%emt 0:04:21]} e5 {[%emt 0:00:14]} 21. Qh3 {[%emt 0:06:02]} Qe6 {[%emt 0:05:14]} 22. Kh1 {[%emt 0:07:53]} e4 {[%emt 0:06:11]} 23. Nh4 {[%emt 0:00:40]} Rxg5 {[%emt 0:00:34]} 24. Rf5 {[%emt 0:05:15]} Rfg8 {[%emt 0:04:21]} 25. Rxg5 {[%emt 0:01:51]} Rxg5 {[%emt 0:00:03]} 26. Nf5 {[%emt 0:00:37]} h5 {[%emt 0:00:14]} 27. Ng3 {[%emt 0:00:41]} Bd7 {[%emt 0:13:06]} 28. Nxh5 {[%emt 0:00:39]} Rxg4 {[%emt 0:01:03]} 29. Ng3 {[%emt 0:00:25]} Qg8 {[%emt 0:00:28]} 30. Qh6 {[%emt 0:02:04]} Rg6 {[%emt 0:00:46]} 31. Qf4 {[%emt 0:00:21]} Bg4 {[%emt 0:00:02]} 32. Rf1 {[%emt 0:00:40]} Bf3+ {[%emt 0:00:47]} 33. Kg1 {[%emt 0:00:39]} Qe6 {[%emt 0:00:39]} 34. Rf2 {[%emt 0:01:00]} Qd7 {[%emt 0:01:08]} 35. Rd2 {[%emt 0:00:29]} b6 {[%emt 0:04:39]} 36. Kf2 {[%emt 0:00:28]} Kb7 {[%emt 0:01:15]} 37. Qf5 {[%emt 0:00:35]} Qf7 {[%emt 0:01:13]} 38. Kg1 {[%emt 0:00:28]} Rg5 {[%emt 0:00:32]} 39. Qf4 {[%emt 0:00:16]} Qe6 {[%emt 0:01:15]} 40. Kf1 {[%emt 0:00:47]} a5 {[%emt 0:05:04]} 41. Rf2 {[%emt 0:09:04]} Qc6 {[%emt 0:07:43]} 42. Rd2 {[%emt 0:04:02]} b5 {[%emt 0:02:18]} 43. Nf5 {[%emt 0:03:34]} Qe6 {[%emt 0:03:46]} 44. Ng3 {[%emt 0:00:15]} b4 {[%emt 0:00:17]} 45. a3 {[%emt 0:03:56]} Qb6 {[%emt 0:03:01]} 46. Kf2 {[%emt 0:00:39]} Ka6 {[%emt 0:01:41]} 47. h4 {[%emt 0:04:27]} Rg4 {[%emt 0:04:57]} 48. Qf5 {[%emt 0:00:01]} Qd6 {[%emt 0:00:10]} 49. Qc8+ {[%emt 0:01:55]} Kb6 {[%emt 0:00:01]} 50. Qc5+ {[%emt 0:01:30]} Qxc5 {[%emt 0:00:03]} 51. dxc5+ {[%emt 0:00:05]} Kxc5 {[%emt 0:00:14]} 52. Nf5 {[%emt 0:02:40]} bxc3 {[%emt 0:01:54]} 53. bxc3 {[%emt 0:00:06]} Rg2+ {[%emt 0:00:08]} 54. Ke1 {[%emt 0:00:04]} Rg1+ {[%emt 0:00:13]} 55. Kf2 {[%emt 0:00:01]} Rc1 {[%emt 0:00:39]} 56. Ne7 {[%emt 0:01:14]} Rxc3 {[%emt 0:01:19]} 57. Rxd5+ {[%emt 0:00:18]} Kb6 {[%emt 0:00:12]} 58. Rd6+ {[%emt 0:01:23]} Kb5 {[%emt 0:01:24]} 59. Rd5+ {[%emt 0:03:51]} Ka4 {[%emt 0:01:15]} 60. Nc6 {[%emt 0:00:26]} Kxa3 {[%emt 0:01:01]} 61. Rxa5+ {[%emt 0:00:37]} Kb2 {[%emt 0:00:21]} 62. Nd4 {[%emt 0:00:30]} Rd3 {[%emt 0:02:28]} 63. Rb5+ {[%emt 0:00:38]} Kc1 {[%emt 0:00:53]} 64. h5 {[%emt 0:00:37]} Rd2+ {[%emt 0:01:55]} 65. Kg3 {[%emt 0:00:16]} Rg2+ {[%emt 0:00:12]} 66. Kf4 {[%emt 0:00:42]} c3 {[%emt 0:02:47]} 67. Nxf3 {[%emt 0:00:33]} exf3 {[%emt 0:00:05]} 68. Kxf3 {[%emt 0:00:03]} Rb2 {[%emt 0:02:33]} 69. Rc5 {[%emt 0:00:03]} c2 {[%emt 0:00:12]} 70. Kf4 {[%emt 0:00:24]} Kd2 {[%emt 0:00:43]} 71. Rd5+ {[%emt 0:00:41]} Ke2 {[%emt 0:00:35]} 72. Rc5 {[%emt 0:00:09]} Kd3 {[%emt 0:00:20]} 73. e4 {[%emt 0:01:46]} Rb5 {[%emt 0:01:22]} 74. Rc6 {[%emt 0:00:32]} Rxh5 {[%emt 0:00:26]} 75. Kg4 {[%emt 0:00:28]} Re5 {[%emt 0:00:18]} 76. Kf3 {[%emt 0:00:05]} f5 {[%emt 0:00:59]} 77. exf5 {[%emt 0:00:52]} Rxf5+ {[%emt 0:00:03]} 78. Kg2 {[%emt 0:00:19]} Rf4 {[%emt 0:00:21]} 0-1

[Event "Marienbad B1-IM 2024"]
[Site "Marianske Lazne"]
[Date "2024.01.16"]
[Round "5.13"]
[White "Lima, Stefan Moisei VIeira"]
[Black "Ashwath, R.."]
[Result "1/2-1/2"]
[ECO "A13"]
[WhiteElo "2173"]
[BlackElo "2284"]
[Annotator "NA RC"]
[PlyCount "28"]
[EventDate "2024.01.10"]
[EventType "tourn"]
[EventCountry "CZE"]
[SourceTitle "playchess.com"]
[Source "ChessBase"]
[SourceQuality "1"]
[TimeControl "40/5400+30:1800+30"]

1. c4 {[%emt 0:00:46]} e6 {[%emt 0:10:51]} 2. g3 {[%emt 0:01:40]} Nf6 {[%emt 0:01:00]} 3. Bg2 {[%emt 0:00:46]} d5 {[%emt 0:00:07]} 4. Nf3 {[%emt 0:00:59]} dxc4 {[%emt 0:01:04]} 5. Qa4+ {[%emt 0:01:14]} c6 {[%emt 0:04:11]} 6. Qxc4 {[%emt 0:00:12]} b5 {[%emt 0:00:09]} 7. Qb3 {[%emt 0:01:01]} Bb7 {[%emt 0:00:58]} 8. d4 {[%emt 0:02:29]} a6 {[%emt 0:04:22]} 9. a4 {[%emt 0:10:55]} Nbd7 {[%emt 0:11:30]} 10. O-O {[%emt 0:00:59]} c5 {[%emt 0:02:18]} 11. axb5 {[%emt 0:03:18]} Bd5 {[%emt 0:01:55]} 12. Qc2 {[%emt 0:09:33]} Be4 {[%emt 0:04:05]} 13. Qb3 {[%emt 0:01:09]} Bd5 {[%emt 0:00:08]} 14. Qc2 {[%emt 0:00:08]} axb5 1/2-1/2

[Event "Marienbad B1-IM 2024"]
[Site "Marianske Lazne"]
[Date "2024.01.16"]
[Round "5.14"]
[White "Dobrowolski, Piotr"]
[Black "Zdybel, Przemyslaw"]
[Result "1-0"]
[ECO "B06"]
[WhiteElo "2401"]
[BlackElo "2180"]
[Annotator "TA"]
[PlyCount "81"]
[EventDate "2024.01.10"]
[EventType "tourn"]
[EventCountry "CZE"]
[SourceTitle "playchess.com"]
[Source "ChessBase"]
[SourceQuality "1"]
[TimeControl "40/5400+30:1800+30"]

{[%evp 9,81,10,33,27,25,27,43,33,87,69,66,58,70,73,70,39,72,50,55,55,62,0,180,170,227,222,218,223,279,284,282,283,275,179,181,183,204,204,204,204,204,206,197,195,211,191,216,216,212,213,218,210,333,309,346,260,379,379,341,253,243,225,279,279,560,551,760,760,747,715,817,834,710,672]} 1. e4 {[%emt 0:00:27]} g6 {[%emt 0:01:15]} 2. d4 {[%emt 0:00:23]} Bg7 {[%emt 0:00:12]} 3. Nc3 {[%emt 0:03:41]} c6 {[%emt 0:00:48]} 4. h4 {[%emt 0:04:14][%cal Bh2h4,Bh4h5][%mdl 32]} d5 {[%emt 0:06:09]} 5. exd5 {[%emt 0:04:53]} cxd5 {[%emt 0:00:26]} 6. h5 {[%emt 0:00:27] B06: Modern Defence.} Nc6 {[%emt 0:06:44]} 7. Bb5 {[%emt 0:00:59]} Nh6 {[%emt 0:13:04]} 8. Nge2 {[%emt 0:18:50] [#] White is slightly better.} Qd7 $146 {[%emt 0:18:03]} ({Black should play} 8... e6 $14) ({Predecessor:} 8... a6 9. Bxc6+ bxc6 10. Na4 Nf5 11. c3 Nd6 12. Nc5 O-O 13. Bf4 Re8 14. Nd3 f6 15. hxg6 hxg6 {½-½ Nagel,M (1763)-Benninger,R (1978) Heusenstamm Schloss op 2022 (3)}) 9. Bxh6 {[%emt 0:01:28]} Bxh6 {[%emt 0:00:13]} 10. hxg6 {[%emt 0:00:05]} hxg6 {[%emt 0:00:05] [#]} 11. Qc1 $1 {[%emt 0:00:15]} Bg7 {[%emt 0:05:13][%cal Bh6g7,Bg7h8,Bh8f6][%mdl 32]} 12. Rxh8+ {[%emt 0:00:06]} Bxh8 {[%emt 0:00:03] [#]} 13. Qh6 $1 {[%emt 0:00:20][%cal Rh6h8]} Bf6 {[%emt 0:00:07]} 14. Nf4 $40 {[%emt 0:05:49][%mdl 128] Black needs to defend precisely.} e6 {[%emt 0:04:26]} (14... Bxd4 $2 15. O-O-O Bxc3 16. Nxd5 $18) 15. Kf1 {[%emt 0:06:54] White is much more active.} (15. O-O-O $14) 15... Kd8 $2 {[%emt 0:16:36] [#] White stays focused until the end.} ({But not} 15... Bxd4 16. Nfxd5 Qd6 17. Rd1 exd5 18. Rxd4 $16) (15... a6 $1 $11 {and Black is okay.} 16. Bxc6 bxc6) 16. Nxg6 $1 $18 {[%emt 0:05:50][%mdl 512]} fxg6 {[%emt 0:06:45]} (16... Qe8 $142) (16... Bxd4 17. Bxc6) 17. Qf8+ {[%emt 0:00:15]} Kc7 {[%emt 0:00:06]} 18. Qxf6 {[%emt 0:00:24]} Qh7 {[%emt 0:00:06]} 19. Bxc6 {[%emt 0:21:25]} Kxc6 {[%emt 0:07:21] Black is weak on the dark squares} 20. Kg1 {[%emt 0:01:41] Repels Qh1+} Bd7 {[%emt 0:00:34]} 21. Re1 {[%emt 0:01:00] Rxe6+ is the strong threat.} Rh8 {[%emt 0:01:11][%csl Gh8][%cal Rh7h1]} 22. f3 {[%emt 0:14:08]} Qh1+ {[%emt 0:01:18]} 23. Kf2 {[%emt 0:00:02]} Qh4+ {[%emt 0:00:05]} 24. Qxh4 {[%emt 0:00:06]} Rxh4 {[%emt 0:00:02][%mdl 4096] Endgame [#] KRB-KRN} 25. Ne2 {[%emt 0:00:44]} Kd6 {[%emt 0:00:15]} 26. c3 {[%emt 0:00:35]} b5 {[%emt 0:02:40]} 27. Nc1 {[%emt 0:01:24]} b4 {[%emt 0:01:06]} 28. Nd3 {[%emt 0:00:13]} (28. cxb4 Rxd4 29. a3 Rd2+ 30. Re2 Rxe2+ 31. Kxe2 (31. Nxe2 e5 $14) 31... e5 $14) 28... bxc3 {[%emt 0:00:05]} 29. bxc3 {[%emt 0:00:02]} Rh8 {[%emt 0:00:18]} 30. Rb1 {[%emt 0:00:32]} Bc6 {[%emt 0:03:01]} (30... Rc8 $142 31. Rb3 Rc7) 31. Ne5 {[%emt 0:00:41] Black must now prevent Nf7+.} Rg8 {[%emt 0:00:19]} 32. Rb3 {[%emt 0:00:26] Strongly threatening Ra3.} Rg7 {[%emt 0:00:40]} (32... Kc7 $142 33. Ra3 Kb6 34. Nxc6 Kxc6 35. Ra6+ (35. Rxa7 Rc8 $18) 35... Kd7 36. Rxa7+ Kd6 37. Ra6+ Kd7) 33. Ra3 {[%emt 0:00:17] Threatens to win with Ra6.} Bb5 {[%emt 0:00:09] Against Ra6+} 34. Ke3 {[%emt 0:02:13]} a6 {[%emt 0:01:22]} 35. Rb3 {[%emt 0:00:17][%cal Oa2a4] aiming for a4!} Kc7 {[%emt 0:00:27]} 36. Rb1 {[%emt 0:00:21]} Kd6 $2 {[%emt 0:02:13] [#]} (36... g5 {is a better defense.} 37. Rh1 Kd6) 37. a4 $1 {[%emt 0:00:50][%mdl 512] White is clearly winning.} Bxa4 {[%emt 0:00:07]} (37... Be8 38. Rb6+) 38. Rb6+ {[%emt 0:00:04]} Ke7 {[%emt 0:00:42]} 39. Rxa6 {[%emt 0:00:18]} Be8 {[%emt 0:00:07]} 40. Ra7+ {[%emt 0:01:34]} Kf8 {[%emt 0:00:11]} 41. Rxg7 {[%emt 0:30:30] Weighted Error Value: White=0.14 (very precise) /Black=0.45} 1-0

[Event "Marienbad B1-IM 2024"]
[Site "Marianske Lazne"]
[Date "2024.01.16"]
[Round "5.15"]
[White "Hak, David"]
[Black "Kulkarni Bhakti"]
[Result "0-1"]
[ECO "A40"]
[WhiteElo "2310"]
[BlackElo "2364"]
[Annotator "TA"]
[PlyCount "130"]
[EventDate "2024.01.10"]
[EventType "tourn"]
[EventCountry "CZE"]
[SourceTitle "playchess.com"]
[Source "ChessBase"]
[SourceQuality "1"]
[TimeControl "40/5400+30:1800+30"]

{[%evp 10,129,39,36,39,29,35,11,17,5,39,0,39,26,41,39,53,29,59,46,47,45,48,32,100,68,65,74,91,89,100,67,65,17,17,29,16,0,18,9,4,-7,-6,-9,-14,-21,-13,-16,0,-82,-81,-73,-75,-79,-74,-70,-76,-72,-29,-59,-59,-59,-59,-68,-59,-60,-62,-62,-6,-6,56,56,58,56,109,109,109,102,323,314,112,345,321,311,247,136,149,156,129,141,435,320,377,313,727,710,691,647,905,470,358,73,611,0,324,294,268,291,274,0,0,-29986,-29987,-29987,0,-29988,-29989,-29997,-29998,-29998,-29999,-29999]} 1. d4 {[%emt 0:01:17]} e6 {[%emt 0:00:35]} 2. Nf3 {[%emt 0:00:49]} f5 {[%emt 0:00:23]} 3. g3 {[%emt 0:02:36]} Nf6 {[%emt 0:00:21]} 4. Bg2 {[%emt 0:00:07]} d5 {[%emt 0:00:47]} 5. O-O {[%emt 0:00:12]} Be7 {[%emt 0:01:00] [#]} 6. c4 $1 {[%emt 0:00:11]} Ne4 $1 {[%emt 0:02:07][%mdl 4] now scores much better than the old 6...0-0. A92: Classical Dutch: Classical Stonewall (with ...Be7): Early deviations.} (6... O-O 7. Nc3) 7. Nc3 {[%emt 0:03:31]} c6 {[%emt 0:03:02] [#]} 8. Rb1 $146 {[%emt 0:06:36]} ({Predecessor:} 8. Qc2 Nd7 9. Rb1 a5 10. a3 O-O 11. Bf4 g5 12. Bd2 Bf6 13. e3 Rf7 14. Rfc1 {½-½ Caruana,F (2792)-Rapport,R (2763) Gashimov Memorial Blitz 7th 2021 (3)}) 8... Nd7 {[%emt 0:02:41] The position is equal.} 9. Nd2 {[%emt 0:03:52][%cal Rd2e4]} Nd6 {[%emt 0:12:07]} 10. b4 {[%emt 0:07:43]} Nf6 {[%emt 0:21:08]} (10... Nxc4 11. Nxc4 dxc4 12. b5 cxb5 13. Nxb5 $14) 11. b5 {[%emt 0:05:27]} O-O {[%emt 0:01:07]} 12. bxc6 {[%emt 0:15:47]} bxc6 {[%emt 0:00:49]} 13. Qa4 {[%emt 0:01:42]} Qc7 {[%emt 0:09:10]} 14. Ba3 {[%emt 0:06:16]} (14. c5 $5 {[%cal Rc5d6]} Nf7 15. Nf3 $14) 14... Bd7 {[%emt 0:10:26][%cal Oc6c5]} 15. Bc5 {[%emt 0:01:54]} Rfb8 {[%emt 0:09:21]} 16. Rb3 {[%emt 0:22:57]} Nc8 {[%emt 0:04:29]} (16... Be8 $14) 17. Qa3 {[%emt 0:03:27]} Be8 {[%emt 0:07:16]} 18. Rfb1 {[%emt 0:00:58] Rxb8 is the strong threat.} Bxc5 {[%emt 0:00:20]} 19. Qxc5 {[%emt 0:00:14][%cal Rc4d5] Threatens to win with cxd5.} Rxb3 {[%emt 0:01:31]} 20. Rxb3 {[%emt 0:00:44][%cal Rc4d5] aiming for cxd5.} Qd6 {[%emt 0:01:47]} 21. Qa5 {[%emt 0:02:23]} (21. Na4 $14 {is more appropriate.}) 21... dxc4 $11 {[%emt 0:01:32]} 22. Nxc4 {[%emt 0:00:40]} Qxd4 {[%emt 0:00:04]} 23. Ne5 {[%emt 0:01:58][%cal Bc4e5,Be5f3,Bf3d2][%mdl 32]} Nd6 {[%emt 0:02:42]} 24. Nf3 {[%emt 0:02:34]} (24. Nxc6 $2 Bxc6 25. Qb4 Qxb4 26. Rxb4 Rc8 27. Bxc6 Rxc6 $19) (24. e3 {feels hotter.} Qd2 25. Qc7 Ng4 26. Nxg4 fxg4 27. Rb1) 24... Qc4 {[%emt 0:00:26]} 25. Bf1 {[%emt 0:05:17][%cal Oe2e4]} (25. Ne5 $5 Qd4 $8 26. Nf3 $11 (26. Bxc6 Ng4 $11) (26. Nxc6 $2 Bxc6 27. Qb4 Qxb4 $19)) 25... Nfe4 {[%emt 0:01:55]} 26. Nxe4 {[%emt 0:01:05]} (26. Qe5 {is more complex.} Qc5 27. Nxe4 Nxe4 28. e3) 26... fxe4 {[%emt 0:00:38]} 27. Nd2 {[%emt 0:02:19]} Qd5 {[%emt 0:00:35]} 28. Qc3 {[%emt 0:00:11]} Rd8 {[%emt 0:00:24] ...Nb5 would be deadly.} 29. Qe3 {[%emt 0:01:01]} (29. Rb2 $11 {remains equal.}) 29... Nf5 $17 {[%emt 0:00:25]} 30. Qxe4 {[%emt 0:00:05]} Qxd2 {[%emt 0:00:30]} 31. Qxe6+ {[%emt 0:01:17]} Bf7 {[%emt 0:00:02]} 32. Qxf5 {[%emt 0:00:20]} Bxb3 {[%emt 0:00:14]} 33. axb3 {[%emt 0:00:02][%mdl 4096] Endgame KQR-KQB} Qc1 {[%emt 0:02:50]} 34. Qe6+ {[%emt 0:00:26]} Kh8 {[%emt 0:00:42]} 35. Qe7 {[%emt 0:00:01][%csl LRa7,LRd8][%cal Re7d8]} Qd1 {[%emt 0:01:22]} 36. e4 {[%emt 0:00:23]} a5 {[%emt 0:01:36]} 37. Qc7 {[%emt 0:01:11][%csl LRa5,LRc6]} Rf8 {[%emt 0:00:38]} 38. Qxa5 {[%emt 0:01:07]} Qf3 {[%emt 0:00:53] Repels Qc3} ({Black should try} 38... Qc2 $15 39. Qe1 Qxb3) 39. Qc5 $11 {[%emt 0:00:11][%cal Of1e2]} h6 {[%emt 0:00:46] [#]} (39... Re8 $11) 40. Be2 $1 $14 {[%emt 0:00:44][%mdl 64] Deflection} Qf7 {[%emt 0:00:34]} 41. Bh5 {[%emt 0:03:20]} (41. Qxc6 Qxf2+ 42. Kh1 Qxe2 43. Qc5 Qf3+ 44. Kg1 Qf1#) 41... Qf6 {[%emt 0:02:59]} (41... Qg8 $1 $14) 42. e5 $1 $16 {[%emt 0:01:55][%cal Be4e5,Be5e6][%mdl 32]} Qf5 {[%emt 0:02:11]} 43. Bg6 $36 {[%emt 0:07:02][%mdl 2112] Deflection. White has strong initiative.} Qf3 {[%emt 0:01:42] [#]} (43... Qc8 $16) 44. Be4 $1 $18 {[%emt 0:01:28][%mdl 576] Double Attack} Qd1+ {[%emt 0:00:32]} (44... Qf7 45. b4) 45. Kg2 {[%emt 0:00:08][%cal Rc5f8]} Rc8 {[%emt 0:02:42]} 46. e6 {[%emt 0:07:44] White wants to mate with Qf5.} (46. Bxc6 Qxb3 47. Qe7 Qc2 $11) 46... Qg4 {[%emt 0:00:50]} 47. Qe5 {[%emt 0:05:53]} (47. Bxc6 Qxe6 48. Bd5 Qe4+ 49. Bxe4 Rxc5 $15) (47. Bf5 $18 Qg5 48. b4) 47... Re8 $16 {[%emt 0:00:30]} 48. Bf5 {[%emt 0:01:39]} (48. Bxc6 $6 Qxe6 49. Qb5 Rc8 $11) (48. e7 Qd7 $11) 48... Qg5 {[%emt 0:00:08]} 49. Qe4 $1 {[%emt 0:01:30]} Rb8 $2 {[%emt 0:03:02][%mdl 8192]} (49... Rc8 $16 50. h4 (50. e7 Re8 $14) 50... Qf6) 50. Bg6 $18 {[%emt 0:01:46] Strongly threatening e7.} Qe7 {[%emt 0:01:09]} 51. Qxc6 {[%emt 0:00:38] Black must now prevent Kh3.} Rd8 $2 {[%emt 0:01:25]} (51... Qb7 52. Be4 Qe7) 52. Qe4 {[%emt 0:01:30]} Kg8 {[%emt 0:01:26]} 53. b4 {[%emt 0:00:44]} Rd2 {[%emt 0:01:24]} 54. Bf7+ {[%emt 0:00:47]} Kf8 {[%emt 0:01:08]} 55. b5 $2 {[%emt 0:00:59]} (55. Bh5 $18 {is more deadly. Hoping for Qf4+.} Rd6 56. Qf4+ Kg8 57. Bf7+ Kf8 58. b5) 55... Qd6 {[%emt 0:01:46][%mdl 8192]} (55... Qc5 $16 56. e7+ (56. Qa8+ Ke7 $16) 56... Qxe7) 56. Qf3 $2 {[%emt 0:01:00]} ({Better is} 56. b6 $18) 56... Rd3 $2 {[%emt 0:00:49][%mdl 8192] Active counter play!} (56... Qd3 $11 {and Black is okay.}) 57. Qa8+ {[%emt 0:00:33]} ({Inferior is} 57. e7+ Kxe7 58. Qh5 Kd8 $11) 57... Qd8 {[%emt 0:00:27] [#]} 58. Qe4 {[%emt 0:00:02][%cal Oe6e7]} Ke7 {[%emt 0:00:27] [#]} 59. Qh4+ $2 {[%emt 0:00:40]} ({Only move:} 59. Kh3 $1 $18) 59... g5 $11 {[%emt 0:01:30] Chess con chili.} 60. Qxh6 $2 {[%emt 0:00:51][%mdl 8192]} (60. Qb4+ $11 Qd6 61. Qxd6+ Rxd6 62. Kf3) 60... Qd5+ {[%emt 0:00:06]} 61. Kh3 {[%emt 0:00:33]} Qf5+ {[%emt 0:00:29]} (61... Qxb5 $2 62. Qh7 (62. Bg6 Rf3 $16) 62... Kf6 63. Bg6 g4+ 64. Kg2 $18) 62. Kg2 {[%emt 0:00:01]} Rd2 {[%emt 0:02:05] Black mates.} (62... Qxb5 $2 63. Qh7 Kd6 64. Qg6 $16) 63. Qg7 {[%emt 0:00:20]} Qxf2+ {[%emt 0:02:16]} 64. Kh3 {[%emt 0:00:04]} Qf5+ {[%emt 0:00:05]} 65. g4 {[%emt 0:00:25]} Qf3# {[%emt 0:00:04] Black used his chance. Excellently played by Kulkarni Bhakti!   Weighted Error Value: White=0.54/Black=0.36} 0-1

[Event "Marienbad B1-IM 2024"]
[Site "Marianske Lazne"]
[Date "2024.01.17"]
[Round "6.11"]
[White "Jurek, Josef"]
[Black "Kulkarni Bhakti"]
[Result "0-1"]
[ECO "A05"]
[WhiteElo "2242"]
[BlackElo "2364"]
[Annotator "TA"]
[PlyCount "52"]
[EventDate "2024.01.10"]
[EventType "tourn"]
[EventCountry "CZE"]
[SourceTitle "playchess.com"]
[Source "ChessBase"]
[SourceQuality "1"]
[TimeControl "40/5400+30:1800+30"]

{[%evp 14,52,24,18,13,6,13,10,10,15,12,6,6,0,0,0,0,0,11,-69,-60,-60,-60,-67,-76,-73,-66,-304,-298,-562,-554,-626,-583,-1002,-920,-1408,-1293,-2456,-1196,-3029,-2162]} 1. Nf3 {[%emt 0:00:02]} Nf6 {[%emt 0:02:09]} 2. c4 {[%emt 0:00:26]} e6 {[%emt 0:00:55]} 3. g3 {[%emt 0:01:47]} d5 {[%emt 0:00:57]} 4. Bg2 {[%emt 0:00:29]} d4 {[%emt 0:01:19]} 5. O-O {[%emt 0:04:51]} c5 {[%emt 0:00:19]} 6. e3 {[%emt 0:03:55]} Nc6 {[%emt 0:00:33]} 7. exd4 {[%emt 0:00:38]} cxd4 {[%emt 0:00:14]} 8. d3 {[%emt 0:01:39]} Bd6 {[%emt 0:00:35] A13: English Opening: 1...e6.} 9. Bg5 {[%emt 0:02:35]} h6 {[%emt 0:00:37]} 10. Bxf6 {[%emt 0:00:26]} Qxf6 {[%emt 0:00:08] The position is equal.} 11. Nbd2 {[%emt 0:00:54]} Qe7 {[%emt 0:02:16]} 12. Re1 {[%emt 0:04:35]} O-O {[%emt 0:04:35]} 13. a3 {[%emt 0:05:13]} a5 $1 {[%emt 0:04:01]} 14. Nb3 {[%emt 0:01:39] 14.Rc1 deserves study.} Qf6 {[%emt 0:02:02]} 15. Nfd2 {[%emt 0:06:35]} Bc7 {[%emt 0:06:32] [#]} 16. f4 $146 {[%emt 0:16:14]} (16. Rc1 $11) ({Predecessor:} 16. Nc5 Qe7 17. Na4 Bd7 18. Nb3 b6 19. Bxc6 Bxc6 20. Nxd4 Bb7 21. Nb5 Qd7 22. Qe2 {1-0 Aronian,L (2785)-Robson,R (2681) American Cup-ch 2022 (1.1)}) 16... e5 $15 {[%emt 0:14:15]} 17. fxe5 {[%emt 0:00:18]} Nxe5 {[%emt 0:00:45]} 18. Ne4 {[%emt 0:01:25]} Qg6 {[%emt 0:01:24]} 19. Nf2 {[%emt 0:02:50]} f5 {[%emt 0:10:56] Threatens to win with ...f4.} 20. Nd2 $2 {[%emt 0:08:48] [#] Loses the game.} (20. Nh3 $1 $15) 20... f4 $1 $19 {[%emt 0:01:49]} 21. Nde4 {[%emt 0:03:50]} (21. Nfe4) 21... fxg3 {[%emt 0:04:14] Black is clearly winning.} 22. hxg3 {[%emt 0:00:46]} Bg4 {[%emt 0:15:37]} 23. Qb3 {[%emt 0:16:24]} Nf3+ {[%emt 0:00:35]} 24. Kf1 {[%emt 0:00:19] [#] White is weak on the dark squares} Bxg3 $1 {[%emt 0:02:09][%mdl 576] Deflection. A strong pair of Bishops.} 25. Qxb7 {[%emt 0:02:38]} (25. Re2 Nh2+) 25... Nh2+ {[%emt 0:01:11]} 26. Kg1 {[%emt 0:00:28]} Bxf2+ {[%emt 0:00:16] Weighted Error Value: White=1.40/Black=0.06 (flawless)} 0-1